bitfinex/quotes_SOLUSD_20250802
["timestamp","ask_amount","ask_price","bid_price","bid_amount"]
[1754177563996,9.56724118,157.6,157.52,72.9]
[1754177563997,8.87724118,157.57,157.52,72.9]
[1754177564201,0.72,157.62,157.55,8.87724118]
[1754177564425,8.87724118,157.6,157.55,9.56724118]
[1754177564729,9.56724118,157.6,157.55,0.69]
[1754177565029,8.87724118,157.57,157.52,72.9]
[1754177565199,0.69,157.56,157.52,46.9]
[1754177565400,9.56724118,157.56,157.52,46.9]
[1754177566019,0.69,157.55,157.51,8.87724118]
[1754177566213,9.56724118,157.55,157.5,9.56724118]
[1754177568830,9.56724118,157.55,157.49,46.9]
[1754177568831,9.56724118,157.54,157.49,55.77724118]
[1754177569034,8.87724118,157.55,157.5,9.56724118]
[1754177569240,8.87724118,157.54,157.5,0.69]
[1754177569826,0.03,157.56,157.51,9.56724118]
[1754177570130,9.56724118,157.55,157.49,46.9]
[1754177570326,8.87724118,157.54,157.49,55.77724118]
[1754177570520,9.56724118,157.54,157.49,56.46724118]
[1754177570916,0.03,157.56,157.51,8.87724118]
[1754177571312,0.03,157.56,157.52,9.56724118]
[1754177571511,8.87724118,157.55,157.49,47.59]
[1754177571833,8.87724118,157.55,157.5,8.87724118]
[1754177572332,8.87724118,157.55,157.5,9.56724118]
[1754177572642,9.56724118,157.55,157.5,9.56724118]
[1754177572809,9.56724118,157.54,157.5,0.69]
[1754177573134,8.87724118,157.54,157.5,0.69]
[1754177573848,8.87724118,157.55,157.5,0.69]
[1754177574223,9.56724118,157.55,157.5,0.69]
[1754177574733,0.03,157.56,157.49,55.77724118]
[1754177574734,8.90724118,157.56,157.51,9.56724118]
[1754177574929,9.56724118,157.55,157.49,47.53496094]
[1754177575120,0.69,157.55,157.5,8.87724118]
[1754177575328,0.69,157.55,157.51,0.69]
[1754177575528,8.90724118,157.56,157.51,0.69]
[1754177575710,0.03,157.56,157.52,0.69]
[1754177576047,0.03,157.56,157.53,0.69]
[1754177576247,8.90724118,157.56,157.5,0.63492063]
[1754177576471,8.87724118,157.54,157.49,9.56724118]
[1754177576825,9.56724118,157.54,157.49,9.56724118]
[1754177577624,0.69,157.54,157.49,9.56724118]
[1754177579155,0.69,157.53,157.48,8.87724118]
[1754177579341,9.56724118,157.52,157.47,0.69]
[1754177579535,0.69,157.52,157.47,0.69]
[1754177579855,0.69,157.52,157.48,0.69]
[1754177581232,9.56724118,157.52,157.48,0.69]
[1754177581561,9.57724118,157.54,157.49,0.67]
[1754177581868,0.7,157.54,157.48,0.67]
[1754177582034,8.87724118,157.53,157.48,9.54724118]
[1754177582234,9.57724118,157.54,157.49,9.54724118]
[1754177582462,9.57724118,157.54,157.49,8.87724118]
[1754177582661,9.57724118,157.54,157.5,0.67]
[1754177583158,0.03,157.56,157.51,9.54724118]
[1754177583369,8.90724118,157.56,157.51,9.54724118]
[1754177583561,9.60724118,157.56,157.52,0.67]
[1754177584168,8.87724118,157.53,157.47,0.67]
[1754177584349,0.7,157.55,157.48,8.87724118]
[1754177584543,0.7,157.55,157.49,9.54724118]
[1754177584544,9.57724118,157.55,157.49,9.54724118]
[1754177585038,8.87724118,157.54,157.49,9.54724118]
[1754177585235,8.87724118,157.53,157.48,8.87724118]
[1754177585434,0.03,157.56,157.48,0.67]
[1754177585674,9.57724118,157.53,157.48,9.54724118]
[1754177585840,9.57724118,157.53,157.49,0.67]
[1754177587541,9.57724118,157.52,157.47,8.87724118]
[1754177587754,8.87724118,157.53,157.48,9.54724118]
[1754177588163,9.57724118,157.52,157.47,8.87724118]
[1754177588367,8.87724118,157.52,157.47,8.87724118]
[1754177588535,8.87724118,157.48,157.43,0.06]
[1754177588736,8.87724118,157.47,157.43,0.06]
[1754177588936,9.57724118,157.47,157.43,0.06]
[1754177589235,8.87724118,157.45,157.43,0.06]
[1754177589742,42.78468397,157.51,157.43,0.06]
[1754177589743,0.7,157.47,157.43,0.06]
[1754177589939,8.87724118,157.46,157.43,0.06]
[1754177590244,8.87724118,157.46,157.43,0.73]
[1754177591745,9.57724118,157.46,157.43,0.06]
[1754177592761,9.57724118,157.45,157.43,0.06]
[1754177593851,26.0,157.48,157.43,0.06]
[1754177593852,9.57724118,157.44,157.43,0.06]
[1754177594756,9.57724118,157.48,157.43,0.73]
[1754177595275,8.87724118,157.46,157.43,0.06]
[1754177595455,8.87724118,157.45,157.43,0.06]
[1754177595761,8.87724118,157.47,157.43,0.73]
[1754177596153,9.57724118,157.47,157.43,0.73]
[1754177596353,0.7,157.47,157.43,0.73]
[1754177596754,9.57724118,157.47,157.43,0.06]
[1754177597356,0.7,157.47,157.43,0.73]
[1754177597672,9.57724118,157.5,157.44,9.54724118]
[1754177597852,8.87724118,157.49,157.44,9.54724118]
[1754177598168,9.57724118,157.49,157.44,9.54724118]
[1754177598397,8.87724118,157.51,157.46,8.87724118]
[1754177598667,0.7,157.52,157.47,0.67]
[1754177598668,8.87724118,157.52,157.47,0.67]
[1754177598870,0.7,157.5,157.45,8.87724118]
[1754177599074,0.03,157.53,157.48,9.54724118]
[1754177599577,0.73,157.53,157.49,0.67]
[1754177600650,9.60724118,157.53,157.48,8.87724118]
[1754177600856,9.60724118,157.53,157.49,0.67]
[1754177601264,0.73,157.53,157.49,0.67]
[1754177601505,9.60724118,157.53,157.49,0.67]
[1754177601981,8.87724118,157.5,157.45,9.547241]
[1754177602269,8.87724118,157.5,157.43,26.06]
[1754177602270,0.7,157.49,157.43,9.60724118]
[1754177602451,0.7,157.49,157.44,8.87724118]
[1754177602869,9.57724118,157.49,157.44,9.54724118]
[1754177603257,9.57724118,157.49,157.45,0.67]
[1754177603460,0.7,157.49,157.45,0.67]
[1754177603690,9.57724118,157.49,157.45,0.67]
[1754177604594,8.87724118,157.5,157.46,0.67]
[1754177604982,9.57724118,157.5,157.46,0.67]
[1754177605164,9.57724118,157.5,157.44,9.54724118]
[1754177606302,8.87724118,157.49,157.44,9.54724118]
[1754177606465,0.7,157.48,157.44,9.54724118]
[1754177607888,8.87724118,157.49,157.44,9.54724118]
[1754177608062,9.57724118,157.49,157.44,9.54724118]
[1754177608596,8.87724118,157.5,157.45,9.54724118]
[1754177608806,8.87724118,157.52,157.47,8.87724118]
[1754177608964,8.90724118,157.53,157.46,0.63508192]
[1754177609168,8.90724118,157.53,157.48,9.54724118]
[1754177609380,9.60724118,157.53,157.48,9.54724118]
[1754177609598,8.90724118,157.53,157.48,9.54724118]
[1754177609805,9.57724118,157.52,157.47,8.87724118]
[1754177610100,9.57724118,157.51,157.46,9.54724118]
[1754177610302,8.87724118,157.51,157.46,9.54724118]
[1754177610482,0.7,157.5,157.46,9.54724118]
[1754177611084,0.03,157.48,157.46,9.54724118]
[1754177611694,0.03,157.48,157.44,0.66]
[1754177612088,9.59724118,157.48,157.43,8.93724118]
[1754177612410,0.72,157.48,157.43,9.59724118]
[1754177612926,9.59724118,157.48,157.43,9.59724118]
[1754177615014,0.72,157.48,157.44,9.53724118]
[1754177615194,0.03,157.48,157.47,8.87724118]
[1754177615371,0.03,157.48,157.47,0.66]
[1754177616023,0.03,157.48,157.47,9.53724118]
[1754177617309,0.03,157.48,157.47,18.44448318]
[1754177617870,0.03,157.48,157.47,65.28448318]
[1754177618020,0.03,157.53,157.48,16.78468397]
[1754177618021,0.03,157.5,157.48,16.78468397]
[1754177618319,0.03,157.5,157.49,10.17220212]
[1754177618535,0.03,157.53,157.49,61.83412727]
[1754177618821,0.03,157.54,157.52,43.75448236]
[1754177618980,0.03,157.54,157.53,56.3520409]
[1754177619179,0.03,157.54,157.53,57.0120409]
[1754177620404,0.03,157.54,157.53,59.5564889]
[1754177622116,0.03,157.58,157.53,59.5564889]
[1754177622416,0.03,157.58,157.55,51.66192515]
[1754177622602,0.03,157.58,157.55,52.29664428]
[1754177622803,0.03,157.58,157.55,52.95664428]
[1754177623011,0.03,157.58,157.55,26.95664428]
[1754177623583,0.03,157.58,157.57,26.0]
[1754177623781,0.03,157.58,157.57,99.11656372]
[1754177623983,0.03,157.58,157.57,99.77656372]
[1754177626293,0.03,157.58,157.57,82.99187975]
[1754177627504,0.03,157.58,157.57,85.53568075]
[1754177627996,0.03,157.58,157.57,12.05568075]
[1754177628329,0.03,157.58,157.57,59.51568075]
[1754177628516,0.03,157.58,157.57,58.85568075]
[1754177629799,0.03,157.58,157.57,49.343801]
[1754177629800,0.72,157.58,157.57,49.343801]
[1754177630833,0.72,157.58,157.57,46.8]
[1754177632231,0.03,157.58,157.57,46.8]
[1754177632450,0.03,157.58,157.57,47.46]
[1754177632603,0.03,157.58,157.57,46.8]
[1754177638957,0.03,157.58,157.57,49.344449]
[1754177639255,0.03,157.58,157.57,56.08681574]
[1754177641440,0.03,157.58,157.57,55.42681574]
[1754177641624,0.03,157.58,157.57,49.97908757]
[1754177641954,0.75,157.58,157.57,49.344449]
[1754177642864,0.75,157.58,157.57,46.8]
[1754177643452,0.03,157.58,157.57,46.8]
[1754177643826,9.62951741,157.58,157.54,0.06]
[1754177644028,8.87951741,157.55,157.54,0.06]
[1754177644737,9.59951741,157.55,157.54,0.06]
[1754177646528,26.38420138,157.55,157.54,0.06]
[1754177648443,9.59951741,157.55,157.54,0.06]
[1754177649147,0.72,157.57,157.54,0.06]
[1754177649348,8.87951741,157.55,157.54,0.06]
[1754177649574,0.75,157.58,157.54,0.06]
[1754177649746,0.03,157.58,157.55,9.54951741]
[1754177650078,0.03,157.58,157.56,47.43]
[1754177650462,0.03,157.58,157.57,0.67]
[1754177651349,0.03,157.58,157.57,9.54951741]
[1754177651558,0.03,157.58,157.56,47.43]
[1754177651752,0.03,157.58,157.56,46.76]
[1754177652573,0.75,157.58,157.56,46.76]
[1754177652882,9.59951741,157.57,157.54,0.06]
[1754177653044,8.87951741,157.56,157.54,0.06]
[1754177653245,9.59951741,157.56,157.54,0.06]
[1754177653444,9.59951741,157.56,157.54,2.604772]
[1754177653643,9.59951741,157.56,157.54,0.06]
[1754177654170,8.87951741,157.56,157.54,0.06]
[1754177654548,8.87951741,157.57,157.54,0.06]
[1754177654750,9.59951741,157.57,157.54,0.06]
[1754177655357,9.59951741,157.57,157.56,0.06]
[1754177656474,8.87951741,157.57,157.56,0.06]
[1754177656898,0.03,157.58,157.56,0.06]
[1754177657067,0.03,157.58,157.57,0.67]
[1754177657382,0.03,157.58,157.56,0.06]
[1754177658094,0.03,157.58,157.57,0.67]
[1754177658280,0.03,157.58,157.57,9.54951741]
[1754177658597,0.03,157.58,157.57,56.28951741]
[1754177660464,0.03,157.58,157.57,47.41]
[1754177660763,0.03,157.58,157.57,56.28951741]
[1754177662466,0.03,157.58,157.57,47.41]
[1754177662666,0.03,157.58,157.57,56.28951741]
[1754177663875,0.03,157.58,157.56,35.57419626]
[1754177664066,0.03,157.58,157.57,49.264286]
[1754177665503,0.03,157.58,157.57,46.72]
[1754177665665,0.03,157.58,157.56,0.06]
[1754177665864,0.03,157.58,157.56,49.32461]
[1754177665865,0.72,157.57,157.56,49.32461]
[1754177666171,0.72,157.57,157.56,46.78]
[1754177667177,9.59951741,157.57,157.56,46.78]
[1754177667689,9.59951741,157.57,157.56,0.06]
[1754177667998,0.03,157.58,157.56,46.78]
[1754177668291,0.03,157.58,157.56,47.45]
[1754177668657,0.03,157.58,157.56,46.78]
[1754177669084,0.03,157.58,157.56,47.45]
[1754177669389,0.03,157.58,157.57,0.67]
[1754177670177,0.03,157.58,157.56,46.78]
[1754177672270,0.03,157.58,157.57,0.72]
[1754177672793,0.03,157.58,157.56,46.78]
[1754177673100,0.03,157.58,157.56,47.5]
[1754177673787,0.03,157.58,157.57,1.35463857]
[1754177673996,0.03,157.58,157.57,10.23415598]
[1754177674500,0.03,157.58,157.57,27.35463857]
[1754177674680,0.03,157.58,157.57,36.23415598]
[1754177674878,0.03,157.58,157.57,49.5837877]
[1754177675797,0.03,157.58,157.57,29.02825286]
[1754177676102,0.03,157.59,157.58,42.78468397]
[1754177676274,0.03,157.59,157.58,100.37361429]
[1754177676590,0.03,157.59,157.58,101.09361429]
[1754177676790,0.03,157.59,157.58,99.70866573]
[1754177677604,0.03,157.6,157.58,109.70866573]
[1754177677786,0.03,157.6,157.59,26.37406744]
[1754177678595,0.03,157.62,157.61,42.78468397]
[1754177678795,0.03,157.69,157.65,26.0]
[1754177678997,0.03,157.69,157.66,56.20365976]
[1754177679203,0.03,157.69,157.66,56.92365976]
[1754177679680,0.03,157.69,157.66,73.70834373]
[1754177679885,0.03,157.69,157.66,76.25101273]
[1754177680312,0.03,157.69,157.66,59.46632876]
[1754177680526,0.03,157.69,157.66,58.74632876]
[1754177680892,0.71,157.67,157.66,46.7]
[1754177681992,0.03,157.67,157.66,46.7]
[1754177683926,0.03,157.67,157.66,8.86938347]
[1754177684133,0.03,157.67,157.66,56.26938347]
[1754177685417,0.03,157.67,157.66,73.05406744]
[1754177687335,0.03,157.67,157.66,55.54938347]
[1754177688024,0.03,157.67,157.66,58.09189047]
[1754177689722,0.03,157.67,157.66,58.81189047]
[1754177696020,0.03,157.67,157.66,75.59657444]
[1754177696535,0.03,157.69,157.68,42.78468397]
[1754177696692,0.2,157.7,157.69,16.78468397]
[1754177696908,0.03,157.71,157.69,22.93906737]
[1754177697209,0.68,157.79,157.73,42.78468397]
[1754177697409,0.03,157.8,157.73,94.83906737]
[1754177697636,0.03,157.8,157.74,16.78468397]
[1754177697833,0.03,157.8,157.75,52.68829782]
[1754177698134,0.03,157.8,157.75,70.19298179]
[1754177698336,0.03,157.8,157.79,26.0]
[1754177698529,0.03,157.8,157.79,78.68813712]
[1754177698721,0.03,157.8,157.79,79.40813712]
[1754177698919,0.44,157.84,157.79,82.82164879]
[1754177699234,0.44,157.84,157.83,8.84789507]
[1754177699422,0.03,157.85,157.83,55.46789507]
[1754177699735,0.03,157.85,157.84,8.84789507]
[1754177699917,0.03,157.85,157.83,55.46789507]
[1754177700125,0.03,157.85,157.84,9.48144803]
[1754177700434,8.87789507,157.85,157.83,46.62]
[1754177700636,8.84789507,157.84,157.73,0.6339948]
[1754177700951,0.03,157.85,157.83,8.84789507]
[1754177701240,0.03,157.85,157.84,82.74144803]
[1754177702219,0.03,157.85,157.84,73.526132]
[1754177703016,0.03,157.85,157.84,73.23355296]
[1754177703348,0.73,157.85,157.83,46.6]
[1754177703844,0.7,157.84,157.83,46.6]
[1754177704042,9.54789507,157.84,157.78,8.84789507]
[1754177704343,0.03,157.85,157.79,46.6]
[1754177704344,0.7,157.83,157.79,46.6]
[1754177704533,0.7,157.82,157.79,55.44789507]
[1754177704842,0.7,157.84,157.79,55.44789507]
[1754177705040,0.7,157.83,157.8,8.84789507]
[1754177705246,0.7,157.82,157.81,46.58]
[1754177705629,9.54789507,157.82,157.74,8.84789507]
[1754177705832,8.84789507,157.79,157.75,46.58]
[1754177706031,0.7,157.78,157.75,46.58]
[1754177706218,0.7,157.78,157.75,55.42789507]
[1754177706831,8.84789507,157.8,157.75,55.42789507]
[1754177707130,0.7,157.79,157.75,55.42789507]
[1754177707646,0.7,157.78,157.75,55.42789507]
[1754177708047,0.7,157.78,157.76,8.84789507]
[1754177708241,0.7,157.78,157.77,46.58]
[1754177708523,0.7,157.8,157.77,46.58]
[1754177708758,0.7,157.79,157.77,46.58]
[1754177708964,0.7,157.81,157.78,8.84789507]
[1754177709116,0.03,157.85,157.8,8.84789507]
[1754177709315,0.73,157.85,157.81,46.58]
[1754177709517,9.57789507,157.85,157.81,46.58]
[1754177709716,9.57789507,157.85,157.82,8.84789507]
[1754177709717,0.03,157.85,157.82,8.84789507]
[1754177710057,0.03,157.85,157.83,55.42789507]
[1754177710219,0.03,157.85,157.84,8.84789507]
[1754177710427,0.03,157.85,157.84,9.50789507]
[1754177711131,0.03,157.88,157.85,16.78468397]
[1754177711351,0.03,157.88,157.87,51.63257904]
[1754177711715,0.03,157.88,157.87,52.29257904]
[1754177713938,0.03,157.88,157.87,43.44468397]
[1754177714267,0.03,157.88,157.87,52.29257904]
[1754177716340,0.03,157.88,157.87,34.84789507]
[1754177716535,0.03,157.88,157.87,52.29257904]
[1754177716840,0.03,157.88,157.87,199.59257904]
[1754177717552,0.03,157.9,157.88,16.78468397]
[1754177717751,0.03,157.9,157.89,72.80593137]
[1754177718073,0.03,157.9,157.89,73.46593137]
[1754177719070,0.03,157.91,157.9,16.78468397]
[1754177719264,0.03,157.91,157.9,26.29257904]
[1754177719464,0.03,157.91,157.9,72.83257904]
[1754177720946,0.03,157.91,157.9,220.13257904]
[1754177721153,0.03,157.91,157.9,166.62283597]
[1754177721362,0.03,157.91,157.9,205.20604707]
[1754177721571,0.03,157.91,157.9,231.20604707]
[1754177721770,0.03,157.91,157.9,205.20604707]
[1754177722175,0.03,157.91,157.9,231.20604707]
[1754177722474,0.73,157.91,157.9,202.66789507]
[1754177722681,0.03,157.91,157.9,55.36789507]
[1754177723549,0.73,157.91,157.9,46.52]
[1754177724973,0.03,157.91,157.9,55.36789507]
[1754177726169,0.73,157.91,157.9,46.52]
[1754177727796,0.73,157.91,157.9,46.5]
[1754177727954,0.73,157.91,157.87,0.06]
[1754177728158,0.73,157.91,157.88,46.5]
[1754177728661,8.84789507,157.89,157.88,46.5]
[1754177728852,9.54789507,157.89,157.88,46.5]
[1754177729652,0.7,157.89,157.88,46.5]
[1754177730196,8.84789507,157.9,157.88,46.5]
[1754177730495,0.03,157.91,157.88,46.5]
[1754177730774,0.73,157.91,157.88,46.5]
[1754177731252,0.69,157.9,157.88,46.5]
[1754177731457,0.69,157.89,157.88,46.5]
[1754177733863,9.53789507,157.89,157.88,46.5]
[1754177734188,0.69,157.89,157.88,46.5]
[1754177734559,9.53789507,157.89,157.88,46.5]
[1754177735680,0.69,157.89,157.88,46.5]
[1754177735861,0.03,157.91,157.88,46.5]
[1754177735862,0.72,157.91,157.88,46.5]
[1754177736184,0.03,157.91,157.88,46.5]
[1754177736692,0.03,157.91,157.89,9.56789507]
[1754177736990,0.03,157.91,157.9,46.5]
[1754177737298,0.03,157.91,157.9,56.06789507]
[1754177737671,0.03,157.91,157.9,47.22]
[1754177737884,0.72,157.91,157.9,46.5]
[1754177738403,9.56789507,157.91,157.9,46.5]
[1754177738864,9.56789507,157.91,157.88,46.5]
[1754177739067,0.72,157.91,157.88,46.5]
[1754177739299,9.53789507,157.9,157.88,46.5]
[1754177739502,9.53789507,157.89,157.88,46.5]
[1754177739802,9.53789507,157.89,157.87,0.06]
[1754177739965,0.03,157.91,157.87,0.06]
[1754177739966,9.53789507,157.88,157.87,0.06]
[1754177742017,0.03,157.91,157.87,0.06]
[1754177742184,8.84789507,157.9,157.87,0.06]
[1754177742518,0.03,157.91,157.88,0.72]
[1754177744493,0.03,157.91,157.87,8.90789507]
[1754177744811,9.53789507,157.9,157.87,0.06]
[1754177744987,0.69,157.89,157.87,0.06]
[1754177745308,8.84789507,157.88,157.87,0.06]
[1754177745630,0.69,157.88,157.87,0.06]
[1754177745792,0.72,157.91,157.87,0.06]
[1754177746199,8.84789507,157.88,157.87,0.06]
[1754177746806,9.53789507,157.88,157.87,0.06]
[1754177747219,26.32257904,157.88,157.87,0.06]
[1754177747515,9.53789507,157.88,157.87,0.06]
[1754177748497,0.69,157.88,157.87,0.06]
[1754177748802,9.53789507,157.88,157.87,0.06]
[1754177749197,8.84789507,157.88,157.87,0.06]
[1754177749419,0.03,157.91,157.87,0.06]
[1754177749616,8.84789507,157.9,157.87,0.78]
[1754177750212,8.87789507,157.91,157.88,0.72]
[1754177750619,0.03,157.91,157.89,0.72]
[1754177751402,0.03,157.91,157.9,0.72]
[1754177757832,0.03,157.91,157.9,9.56789507]
[1754177758723,0.03,157.91,157.9,0.72]
[1754177759245,0.03,157.91,157.87,0.06]
[1754177759457,0.03,157.91,157.88,72.46]
[1754177759607,8.87789507,157.91,157.88,46.46]
[1754177759810,8.84789507,157.89,157.87,0.06]
[1754177760046,8.84789507,157.88,157.87,0.06]
[1754177760217,0.03,157.91,157.87,0.06]
[1754177760425,9.53789507,157.88,157.87,0.06]
[1754177760647,26.32257904,157.88,157.87,0.06]
[1754177761214,9.53789507,157.88,157.87,0.06]
[1754177767824,16.78468397,157.87,157.85,0.06]
[1754177768028,26.0,157.83,157.75,0.67]
[1754177768258,8.84789507,157.76,157.75,0.67]
[1754177769827,8.84789507,157.78,157.75,0.67]
[1754177770153,8.84789507,157.8,157.75,9.51789507]
[1754177770354,8.84789507,157.81,157.76,8.84789507]
[1754177770651,8.84789507,157.82,157.77,9.51789507]
[1754177770959,8.84789507,157.82,157.78,0.67]
[1754177771255,0.66,157.85,157.8,8.84789507]
[1754177771256,8.84789507,157.85,157.8,8.84789507]
[1754177771455,8.84789507,157.84,157.81,0.67]
[1754177772259,16.78468397,157.87,157.79,0.67]
[1754177772260,8.84789507,157.83,157.79,0.67]
[1754177772548,8.84789507,157.83,157.77,46.48]
[1754177772549,8.84789507,157.8,157.77,46.48]
[1754177772753,8.84789507,157.78,157.75,0.67]
[1754177772975,8.84789507,157.78,157.76,0.67]
[1754177773357,8.84789507,157.78,157.73,55.30789507]
[1754177773571,8.84789507,157.78,157.74,0.67]
[1754177773876,8.84789507,157.78,157.75,0.67]
[1754177774170,8.84789507,157.78,157.73,81.30789507]
[1754177774358,8.84789507,157.78,157.75,0.67]
[1754177774671,8.84789507,157.78,157.74,26.0]
[1754177774980,0.66,157.82,157.76,0.67]
[1754177775152,8.84789507,157.81,157.76,35.51789507]
[1754177775482,8.84789507,157.81,157.77,0.67]
[1754177775980,0.66,157.84,157.78,0.67]
[1754177776182,8.84789507,157.81,157.78,0.67]
[1754177777860,8.84789507,157.79,157.76,26.0]
[1754177778181,8.84789507,157.79,157.76,26.67]
[1754177778381,8.84789507,157.81,157.78,26.0]
[1754177778554,8.84789507,157.83,157.79,0.67]
[1754177778753,0.66,157.85,157.79,0.67]
[1754177778754,8.84789507,157.85,157.79,26.67]
[1754177778995,0.03,157.91,157.84,8.84789507]
[1754177779287,0.03,157.91,157.9,8.84789507]
[1754177779469,0.03,157.91,157.9,9.48120729]
[1754177779672,0.03,157.91,157.9,10.15120729]
[1754177781069,0.03,157.91,157.9,56.61120729]
[1754177781762,0.03,157.91,157.9,73.39589126]
[1754177781975,0.03,157.91,157.9,76.60882193]
[1754177782685,0.03,157.93,157.91,26.78468397]
[1754177782856,0.2,157.94,157.93,26.78468397]
[1754177783195,0.2,157.94,157.93,25.63257904]
[1754177783481,0.2,157.94,157.93,26.30257904]
[1754177785957,0.2,157.94,157.93,9.51789507]
[1754177786270,0.2,157.94,157.93,12.05588507]
[1754177786586,0.2,157.94,157.93,26.0]
[1754177786757,0.2,157.94,157.93,34.84789507]
[1754177788089,0.2,157.94,157.93,8.84789507]
[1754177788288,0.2,157.94,157.93,34.84789507]
[1754177788492,0.2,157.94,157.93,26.0]
[1754177790775,9.04789507,157.94,157.92,46.42]
[1754177791078,9.70789507,157.94,157.92,46.42]
[1754177791903,9.04789507,157.94,157.92,46.42]
[1754177792095,9.53789507,157.93,157.92,46.42]
[1754177792312,9.53789507,157.93,157.89,46.42]
[1754177792608,8.84789507,157.9,157.87,0.06]
[1754177792817,8.84789507,157.89,157.87,0.06]
[1754177792991,9.53789507,157.89,157.87,0.06]
[1754177793608,9.53789507,157.88,157.87,0.06]
[1754177796211,8.84789507,157.88,157.87,0.06]
[1754177800044,0.2,157.94,157.87,9.58789507]
[1754177800045,0.69,157.93,157.87,9.58789507]
[1754177800338,8.84789507,157.93,157.88,9.52789507]
[1754177800508,9.53789507,157.93,157.88,9.52789507]
[1754177800701,8.84789507,157.91,157.87,0.06]
[1754177800900,9.53789507,157.91,157.87,0.06]
[1754177801315,9.53789507,157.91,157.87,0.74]
[1754177801614,9.04789507,157.94,157.89,34.84789507]
[1754177801815,9.04789507,157.94,157.9,0.68]
[1754177802743,0.2,157.94,157.91,0.68]
[1754177802945,0.2,157.94,157.91,8.84789507]
[1754177803143,0.2,157.94,157.92,9.52789507]
[1754177803445,0.2,157.94,157.92,0.68]
[1754177804848,0.2,157.94,157.92,9.52789507]
[1754177805221,0.2,157.94,157.93,9.52789507]
[1754177807363,0.2,157.94,157.93,47.06]
[1754177807551,0.2,157.94,157.93,55.90789507]
[1754177808143,0.2,157.94,157.93,72.69257904]
[1754177814069,0.2,157.94,157.93,75.23024804]
[1754177815693,0.2,157.94,157.93,222.53024804]
[1754177819964,0.03,157.96,157.94,16.78468397]
[1754177820181,0.03,157.96,157.95,81.45358585]
[1754177820373,0.03,157.96,157.95,82.13358585]
[1754177820899,0.03,157.96,157.95,55.82100681]
[1754177821196,0.73,157.96,157.95,55.82100681]
[1754177821595,0.73,157.96,157.95,81.82100681]
[1754177821762,0.73,157.96,157.95,81.18789507]
[1754177822167,0.03,157.96,157.95,81.18789507]
[1754177822488,0.73,157.96,157.95,81.18789507]
[1754177822674,0.03,157.96,157.95,81.18789507]
[1754177823065,0.73,157.96,157.95,81.18789507]
[1754177824092,0.73,157.96,157.95,72.34]
[1754177825291,0.03,157.96,157.95,81.82100681]
[1754177828786,0.73,157.96,157.95,81.18789507]
[1754177830674,0.03,157.96,157.95,81.18789507]
[1754177833198,0.03,157.96,157.95,81.85789507]
[1754177835184,0.03,157.96,157.95,81.49047411]
[1754177835505,0.03,157.96,157.95,72.64257904]
[1754177837192,0.03,157.96,157.95,81.49047411]
[1754177837388,0.03,157.98,157.97,8.84789507]
[1754177837693,0.7,158.03,158.0,26.0]
[1754177837897,0.7,158.02,158.01,81.14789507]
[1754177838067,0.7,158.02,158.01,72.3]
[1754177840591,0.7,158.02,158.01,46.3]
[1754177840988,9.54789507,158.02,157.99,26.0]
[1754177841195,0.7,158.01,158.0,46.3]